Workbook

Sheet Лист1

Sheet Лист2
A1: Задача №1
A2: Число оборотов двигателя y функционально зависит от температуры x. Вычислить число оборотов двигателя y(x) при температуре a и b. Построить график этой функциональной зависимости на интервале [a,b] с шагом 0,05l; l – длина отрезка [a,b].
A3: a | B3: b | C3: y(x)
A4: -5.834 | B4: 0.325
A6: Решение
A7: x | B7: y | D7: Функциональная зависимость
A8: -5.834 | B8: =IF(A8<=-1*PI(),LN(COS(5*A8)-2*A8)+1,0.35*TAN(0.1*A8)-2*EXP(-0.1*A8)) -> 3.401796837
A9: =A8+0.30795 -> -5.52605 | B9: =IF(A9<=-1*PI(),LN(COS(5*A9)-2*A9)+1,0.35*TAN(0.1*A9)-2*EXP(-0.1*A9)) -> 3.327516682
A10: =A9+0.30795 -> -5.2181 | B10: 3.398945134
A11: -4.91015 | B11: 3.366092122
A12: -4.6022 | B12: 3.161126068
A13: -4.29425 | B13: 3.043896022
A14: -3.9863 | B14: 3.133244464
A15: -3.67835 | B15: 3.110664541
A16: -3.3704 | B16: 2.844806718
A17: -3.06245 | B17: -2.827297362
A18: -2.7545 | B18: -2.733168569
A19: =A18+0.30795 -> -2.44655 | B19: -2.641740867
A20: -2.1386 | B20: -2.552911921
A21: -1.83065 | B21: -2.466583156
A22: -1.5227 | B22: -2.382659459
A23: -1.21475 | B23: -2.301048891
A24: -0.9068 | B24: -2.22166243
A25: -0.59885 | B25: -2.144413726
A26: -0.2909 | B26: -2.069218867
A27: 0.01705 | B27: -1.995996155
A28: 0.325 | B28: -1.924665893

Sheet Лист3
A1: Задача № 2
A2: Число оборотов f, как и в предыдущей задаче функционально зависит от температуры x. Требуется найти температуру, при которой число оборотов равно нулю, то есть найти все корни уравнения f(x)=0 на отрезке локализаци [-5; 5] с точностью 0,00001.
A5: Решение
A6: x | B6: y | C6: Схематичный график Функции
A7: -5 | B7: =A7^4+4*A7^3-4*A7^2-16*A7-8 -> 97
A8: =A7+0.5 -> -4.5 | B8: =A8^4+4*A8^3-4*A8^2-16*A8-8 -> 28.5625
A9: -4.146249504 | B9: -0.000916522618
A10: =A9+0.5 -> -3.646249504 | B10: -19.9894473
A11: -3.146249504 | B11: -23.84506875
A12: -2.646249504 | B12: -18.75652941
A13: -2.146249504 | B13: -10.41257778
A14: -1.317878109 | B14: -0.0002545266534
A15: -0.682178941 | B15: 0.0001008099937
A16: -0.182178941 | B16: -5.240977559
A17: 0.212468713 | B17: -11.53966748
A18: 0.712468713 | B18: -19.72564675
A19: 1.212468713 | B19: -23.98897874
A20: 1.712468713 | B20: -18.44225731
A21: 2.146264504 | B21: 8.261375243e-06
A22: 2.646264504 | B22: 44.81108683
A23: 3.146264504 | B23: 124.6328999
A24: 3.646264504 | B24: 251.154241
A25: 4.146264504 | B25: 437.5639036
A26: 4.646264504 | B26: 698.5506812

Sheet Лист4
A1: Задача №1
A2: Построить таблицу значений функции z(x,y) и ее отображение в виде поверхности на области с шагом 0,1 по каждому направлению.
A5: решение
C6: -1 | D6: =C6+0.1 -> -0.9 | E6: =D6+0.1 -> -0.8 | F6: -0.7 | G6: -0.6 | H6: -0.5 | I6: -0.4 | J6: -0.3 | K6: -0.2 | L6: -0.1 | M6: -1.387778781e-16 | N6: 0.1 | O6: 0.2 | P6: 0.3 | Q6: 0.4 | R6: 0.5 | S6: 0.6 | T6: 0.7 | U6: =T6+0.1 -> 0.8 | V6: 0.9 | W6: =V6+0.1 -> 1
B7: -1 | C7: =IF(C$6*$B7>0, SIN(PI()*C$6)+SIN(PI()*$B7),SIN(PI()*ABS(C$6))*SIN(PI()*$B7)) -> -2.45029691e-16 | D7: =IF(D$6*$B7>0, SIN(PI()*D$6)+SIN(PI()*$B7),SIN(PI()*ABS(D$6))*SIN(PI()*$B7)) -> -0.3090169944 | E7: -0.5877852523 | F7: -0.8090169944 | G7: -0.9510565163 | H7: -1 | I7: -0.9510565163 | J7: -0.8090169944 | K7: -0.5877852523 | L7: -0.3090169944 | M7: -5.584984077e-16 | N7: -3.785916932e-17 | O7: -7.201241937e-17 | P7: -9.911659207e-17 | Q7: -1.165185421e-16 | R7: -1.225148455e-16 | S7: -1.165185421e-16 | T7: -9.911659207e-17 | U7: -7.201241937e-17 | V7: -3.785916932e-17 | W7: -1.238249292e-31
B8: =B7+0.1 -> -0.9 | C8: =IF(C$6*$B8>0, SIN(PI()*C$6)+SIN(PI()*$B8),SIN(PI()*ABS(C$6))*SIN(PI()*$B8)) -> -0.3090169944 | D8: -0.6180339887 | E8: -0.8968022467 | F8: -1.118033989 | G8: -1.260073511 | H8: -1.309016994 | I8: -1.260073511 | J8: -1.118033989 | K8: -0.8968022467 | L8: -0.6180339887 | M8: -0.3090169944 | N8: -0.09549150281 | O8: -0.181635632 | P8: -0.25 | Q8: -0.2938926261 | R8: -0.3090169944 | S8: -0.2938926261 | T8: -0.25 | U8: -0.181635632 | V8: -0.09549150281 | W8: -3.12321395e-16
B9: =B8+0.1 -> -0.8 | C9: -0.5877852523 | D9: -0.8968022467 | E9: -1.175570505 | F9: -1.396802247 | G9: -1.538841769 | H9: -1.587785252 | I9: -1.538841769 | J9: -1.396802247 | K9: -1.175570505 | L9: -0.8968022467 | M9: -0.5877852523 | N9: -0.181635632 | O9: -0.3454915028 | P9: -0.4755282581 | Q9: -0.5590169944 | R9: -0.5877852523 | S9: -0.5590169944 | T9: -0.4755282581 | U9: -0.3454915028 | V9: -0.181635632 | W9: -5.940705959e-16
B10: -0.7 | C10: -0.8090169944 | D10: -1.118033989 | E10: -1.396802247 | F10: -1.618033989 | G10: -1.760073511 | H10: -1.809016994 | I10: -1.760073511 | J10: -1.618033989 | K10: -1.396802247 | L10: -1.118033989 | M10: -0.8090169944 | N10: -0.25 | O10: -0.4755282581 | P10: -0.6545084972 | Q10: -0.7694208843 | R10: -0.8090169944 | S10: -0.7694208843 | T10: -0.6545084972 | U10: -0.4755282581 | V10: -0.25 | W10: -8.176680276e-16
B11: -0.6 | C11: -0.9510565163 | D11: -1.260073511 | E11: -1.538841769 | F11: -1.760073511 | G11: -1.902113033 | H11: -1.951056516 | I11: -1.902113033 | J11: -1.760073511 | K11: -1.538841769 | L11: -1.260073511 | M11: -0.9510565163 | N11: -0.2938926261 | O11: -0.5590169944 | P11: -0.7694208843 | Q11: -0.9045084972 | R11: -0.9510565163 | S11: -0.9045084972 | T11: -0.7694208843 | U11: -0.5590169944 | V11: -0.2938926261 | W11: -9.612264158e-16
B12: -0.5 | C12: -1 | D12: -1.309016994 | E12: -1.587785252 | F12: -1.809016994 | G12: -1.951056516 | H12: -2 | I12: -1.951056516 | J12: -1.809016994 | K12: -1.587785252 | L12: -1.309016994 | M12: -1 | N12: -0.3090169944 | O12: -0.5877852523 | P12: -0.8090169944 | Q12: -0.9510565163 | R12: -1 | S12: -0.9510565163 | T12: -0.8090169944 | U12: -0.5877852523 | V12: -0.3090169944 | W12: -1.010693265e-15
B13: -0.4 | C13: -0.9510565163 | D13: -1.260073511 | E13: -1.538841769 | F13: -1.760073511 | G13: -1.902113033 | H13: -1.951056516 | I13: -1.902113033 | J13: -1.760073511 | K13: -1.538841769 | L13: -1.260073511 | M13: -0.9510565163 | N13: -0.2938926261 | O13: -0.5590169944 | P13: -0.7694208843 | Q13: -0.9045084972 | R13: -0.9510565163 | S13: -0.9045084972 | T13: -0.7694208843 | U13: -0.5590169944 | V13: -0.2938926261 | W13: -9.612264158e-16
B14: -0.3 | C14: -0.8090169944 | D14: -1.118033989 | E14: -1.396802247 | F14: -1.618033989 | G14: -1.760073511 | H14: -1.809016994 | I14: -1.760073511 | J14: -1.618033989 | K14: -1.396802247 | L14: -1.118033989 | M14: -0.8090169944 | N14: -0.25 | O14: -0.4755282581 | P14: -0.6545084972 | Q14: -0.7694208843 | R14: -0.8090169944 | S14: -0.7694208843 | T14: -0.6545084972 | U14: -0.4755282581 | V14: -0.25 | W14: -8.176680276e-16
B15: -0.2 | C15: -0.5877852523 | D15: -0.8968022467 | E15: -1.175570505 | F15: -1.396802247 | G15: -1.538841769 | H15: -1.587785252 | I15: -1.538841769 | J15: -1.396802247 | K15: -1.175570505 | L15: -0.8968022467 | M15: -0.5877852523 | N15: -0.181635632 | O15: -0.3454915028 | P15: -0.4755282581 | Q15: -0.5590169944 | R15: -0.5877852523 | S15: -0.5590169944 | T15: -0.4755282581 | U15: -0.3454915028 | V15: -0.181635632 | W15: -5.940705959e-16
B16: -0.1 | C16: -0.3090169944 | D16: -0.6180339887 | E16: -0.8968022467 | F16: -1.118033989 | G16: -1.260073511 | H16: -1.309016994 | I16: -1.260073511 | J16: -1.118033989 | K16: -0.8968022467 | L16: -0.6180339887 | M16: -0.3090169944 | N16: -0.09549150281 | O16: -0.181635632 | P16: -0.25 | Q16: -0.2938926261 | R16: -0.3090169944 | S16: -0.2938926261 | T16: -0.25 | U16: -0.181635632 | V16: -0.09549150281 | W16: -3.12321395e-16
B17: -1.387778781e-16 | C17: -5.584984077e-16 | D17: -0.3090169944 | E17: -0.5877852523 | F17: -0.8090169944 | G17: -0.9510565163 | H17: -1 | I17: -0.9510565163 | J17: -0.8090169944 | K17: -0.5877852523 | L17: -0.3090169944 | M17: -8.719671245e-16 | N17: -1.3472633e-16 | O17: -2.562647081e-16 | P17: -3.527181111e-16 | Q17: -4.146450079e-16 | R17: -4.359835623e-16 | S17: -4.146450079e-16 | T17: -3.527181111e-16 | U17: -2.562647081e-16 | V17: -1.3472633e-16 | W17: -4.406456501e-31
B18: 0.1 | C18: 3.785916932e-17 | D18: 0.09549150281 | E18: 0.181635632 | F18: 0.25 | G18: 0.2938926261 | H18: 0.3090169944 | I18: 0.2938926261 | J18: 0.25 | K18: 0.181635632 | L18: 0.09549150281 | M18: 1.3472633e-16 | N18: 0.6180339887 | O18: 0.8968022467 | P18: 1.118033989 | Q18: 1.260073511 | R18: 1.309016994 | S18: 1.260073511 | T18: 1.118033989 | U18: 0.8968022467 | V18: 0.6180339887 | W18: 0.3090169944
B19: 0.2 | C19: 7.201241937e-17 | D19: 0.181635632 | E19: 0.3454915028 | F19: 0.4755282581 | G19: 0.5590169944 | H19: 0.5877852523 | I19: 0.5590169944 | J19: 0.4755282581 | K19: 0.3454915028 | L19: 0.181635632 | M19: 2.562647081e-16 | N19: 0.8968022467 | O19: 1.175570505 | P19: 1.396802247 | Q19: 1.538841769 | R19: 1.587785252 | S19: =IF(S$6*$B19>0, SIN(PI()*S$6)+SIN(PI()*$B19),SIN(PI()*ABS(S$6))*SIN(PI()*$B19)) -> 1.538841769 | T19: 1.396802247 | U19: 1.175570505 | V19: 0.8968022467 | W19: 0.5877852523
B20: 0.3 | C20: 9.911659207e-17 | D20: 0.25 | E20: 0.4755282581 | F20: 0.6545084972 | G20: 0.7694208843 | H20: 0.8090169944 | I20: 0.7694208843 | J20: 0.6545084972 | K20: 0.4755282581 | L20: 0.25 | M20: 3.527181111e-16 | N20: 1.118033989 | O20: 1.396802247 | P20: 1.618033989 | Q20: 1.760073511 | R20: 1.809016994 | S20: 1.760073511 | T20: 1.618033989 | U20: 1.396802247 | V20: 1.118033989 | W20: 0.8090169944
B21: 0.4 | C21: 1.165185421e-16 | D21: 0.2938926261 | E21: 0.5590169944 | F21: 0.7694208843 | G21: 0.9045084972 | H21: 0.9510565163 | I21: 0.9045084972 | J21: 0.7694208843 | K21: 0.5590169944 | L21: 0.2938926261 | M21: 4.146450079e-16 | N21: 1.260073511 | O21: 1.538841769 | P21: 1.760073511 | Q21: 1.902113033 | R21: 1.951056516 | S21: 1.902113033 | T21: 1.760073511 | U21: 1.538841769 | V21: 1.260073511 | W21: 0.9510565163
B22: 0.5 | C22: 1.225148455e-16 | D22: 0.3090169944 | E22: 0.5877852523 | F22: 0.8090169944 | G22: 0.9510565163 | H22: 1 | I22: 0.9510565163 | J22: 0.8090169944 | K22: 0.5877852523 | L22: 0.3090169944 | M22: 4.359835623e-16 | N22: 1.309016994 | O22: 1.587785252 | P22: 1.809016994 | Q22: 1.951056516 | R22: 2 | S22: 1.951056516 | T22: 1.809016994 | U22: 1.587785252 | V22: 1.309016994 | W22: 1
B23: 0.6 | C23: 1.165185421e-16 | D23: 0.2938926261 | E23: 0.5590169944 | F23: 0.7694208843 | G23: 0.9045084972 | H23: 0.9510565163 | I23: 0.9045084972 | J23: 0.7694208843 | K23: 0.5590169944 | L23: 0.2938926261 | M23: 4.146450079e-16 | N23: 1.260073511 | O23: 1.538841769 | P23: 1.760073511 | Q23: 1.902113033 | R23: 1.951056516 | S23: 1.902113033 | T23: 1.760073511 | U23: 1.538841769 | V23: 1.260073511 | W23: 0.9510565163
B24: 0.7 | C24: 9.911659207e-17 | D24: 0.25 | E24: 0.4755282581 | F24: 0.6545084972 | G24: 0.7694208843 | H24: 0.8090169944 | I24: 0.7694208843 | J24: 0.6545084972 | K24: 0.4755282581 | L24: 0.25 | M24: 3.527181111e-16 | N24: 1.118033989 | O24: 1.396802247 | P24: 1.618033989 | Q24: 1.760073511 | R24: 1.809016994 | S24: 1.760073511 | T24: 1.618033989 | U24: 1.396802247 | V24: 1.118033989 | W24: 0.8090169944
B25: 0.8 | C25: 7.201241937e-17 | D25: 0.181635632 | E25: 0.3454915028 | F25: 0.4755282581 | G25: 0.5590169944 | H25: 0.5877852523 | I25: 0.5590169944 | J25: 0.4755282581 | K25: 0.3454915028 | L25: 0.181635632 | M25: 2.562647081e-16 | N25: 0.8968022467 | O25: 1.175570505 | P25: 1.396802247 | Q25: 1.538841769 | R25: 1.587785252 | S25: 1.538841769 | T25: 1.396802247 | U25: 1.175570505 | V25: 0.8968022467 | W25: 0.5877852523
B26: 0.9 | C26: 3.785916932e-17 | D26: 0.09549150281 | E26: 0.181635632 | F26: 0.25 | G26: 0.2938926261 | H26: 0.3090169944 | I26: 0.2938926261 | J26: 0.25 | K26: 0.181635632 | L26: 0.09549150281 | M26: 1.3472633e-16 | N26: 0.6180339887 | O26: 0.8968022467 | P26: 1.118033989 | Q26: 1.260073511 | R26: 1.309016994 | S26: 1.260073511 | T26: 1.118033989 | U26: 0.8968022467 | V26: 0.6180339887 | W26: 0.3090169944
B27: 1 | C27: 1.238249292e-31 | D27: 3.12321395e-16 | E27: 5.940705959e-16 | F27: 8.176680276e-16 | G27: 9.612264158e-16 | H27: 1.010693265e-15 | I27: 9.612264158e-16 | J27: 8.176680276e-16 | K27: 5.940705959e-16 | L27: 3.12321395e-16 | M27: 4.406456501e-31 | N27: 0.3090169944 | O27: 0.5877852523 | P27: 0.8090169944 | Q27: 0.9510565163 | R27: 1 | S27: 0.9510565163 | T27: 0.8090169944 | U27: 0.5877852523 | V27: 0.3090169944 | W27: 2.02138653e-15
